bitfinex/quotes_ETHUSD_20241207
["timestamp","ask_amount","ask_price","bid_price","bid_amount"]
[1733543480917,0.8065,3993.9,3993.4,0.87644]
[1733543481307,0.09486165,3993.8,3993.4,0.87644]
[1733543481710,0.8065,3993.9,3993.4,0.87644]
[1733543481910,0.09486165,3993.8,3993.4,0.87644]
[1733543482110,0.8065,3993.9,3993.0,1.08243359]
[1733543482111,0.8065,3993.9,3993.5,0.02503777]
[1733543482443,0.09486165,3993.8,3993.5,0.87642]
[1733543482937,0.8065,3993.9,3993.5,0.87642]
[1733543483174,0.8065,3993.9,3993.7,0.87637]
[1733543483451,0.7622,3994.8,3993.7,0.87637]
[1733543483744,0.86656705,3994.7,3993.7,0.87637]
[1733543484045,0.7622,3994.6,3993.7,0.87637]
[1733543485011,0.0952502,3994.5,3993.7,0.87637]
[1733543485208,0.7622,3994.4,3993.7,0.87637]
[1733543485514,0.09511693,3994.3,3993.7,0.87637]
[1733543486531,0.7622,3994.2,3993.3,1.08243359]
[1733543486735,0.09498364,3994.1,3993.3,1.95889359]
[1733543487254,0.09498364,3994.1,3993.3,1.08243359]
[1733543487408,0.09498364,3994.1,3993.4,0.87643]
[1733543488042,0.7622,3994.0,3993.4,0.87643]
[1733543488345,0.09485034,3993.9,3993.4,0.87643]
[1733543488525,0.09485034,3993.9,3993.5,0.87641]
[1733543493335,0.09485034,3993.9,3993.2,0.02503677]
[1733543493522,0.09485034,3993.9,3993.6,0.87639]
[1733543494461,0.7622,3994.0,3993.6,0.87639]
[1733543494964,0.09490749,3993.9,3993.6,0.87639]
[1733543495366,0.7622,3994.0,3993.6,0.87639]
[1733543495668,0.09484083,3993.8,3993.6,0.87639]
[1733543495871,0.7622,3994.0,3993.6,0.87639]
[1733543496167,0.09492307,3993.9,3993.4,0.87644]
[1733543496367,0.09492307,3993.9,3993.5,0.87641]
[1733543496532,0.09492307,3993.9,3993.2,0.57503675]
[1733543496721,0.09492307,3993.9,3993.6,0.8764]
[1733543496926,0.7622,3994.0,3993.6,0.8764]
[1733543497156,0.09492307,3993.9,3993.6,0.902]
[1733543497365,0.7622,3994.0,3993.6,0.902]
[1733543497867,0.09492307,3993.9,3993.6,0.902]
[1733543498256,0.7622,3994.0,3993.6,0.902]
[1733543498571,0.09492307,3993.9,3993.7,1.35443656]
[1733543498741,0.09492307,3993.9,3993.8,1.42635]
[1733543499078,0.7753,3994.7,3993.8,1.42635]
[1733543499566,0.09077518,3994.6,3993.8,1.42635]
[1733543499767,0.09077518,3994.6,3994.1,0.87628]
[1733543500278,0.09077518,3994.6,3994.1,0.90188]
[1733543500836,0.7753,3994.7,3994.1,0.90188]
[1733543501150,0.09077518,3994.6,3994.1,0.90188]
[1733543501359,0.7753,3994.7,3994.1,0.90188]
[1733543501686,0.7753,3994.7,3994.2,0.87626]
[1733543503939,0.09108251,3994.6,3994.2,0.87626]
[1733543504450,0.7753,3994.7,3994.2,0.87626]
[1733543504874,0.09108251,3994.6,3994.2,0.87626]
[1733543505381,0.7753,3994.7,3994.2,0.87626]
[1733543505762,0.09108251,3994.6,3994.2,0.87626]
[1733543511003,0.7753,3994.7,3994.2,0.87626]
[1733543511369,0.09108251,3994.6,3994.2,0.87626]
[1733543511771,0.7753,3994.7,3994.2,0.87626]
[1733543511966,0.09101588,3994.5,3994.2,0.87626]
[1733543512166,0.7753,3994.7,3994.2,0.87626]
[1733543512367,0.09108251,3994.6,3994.2,0.87626]
[1733543515901,0.09108251,3994.6,3994.1,0.0256]
[1733543518081,0.09108251,3994.6,3994.2,0.87626]
[1733543518286,0.09108251,3994.6,3994.1,0.0256]
[1733543518483,0.7753,3994.7,3994.1,0.0256]
[1733543518882,0.09128562,3994.6,3994.1,0.0256]
[1733543519082,0.09128562,3994.6,3994.1,0.90188]
[1733543519897,0.09128562,3994.6,3994.2,0.87626]
[1733543520086,0.7753,3994.7,3994.2,0.87626]
[1733543520283,0.7753,3994.7,3994.1,0.0256]
[1733543520487,0.7753,3994.7,3994.2,0.87626]
[1733543520721,0.09128562,3994.6,3994.2,0.87626]
[1733543521017,0.7753,3994.7,3994.1,0.0256]
[1733543521526,0.09128562,3994.6,3994.1,0.0256]
[1733543524389,0.09128562,3994.6,3994.1,0.90188]
[1733543525801,0.09128562,3994.6,3994.1,0.0256]
[1733543529935,0.7753,3994.7,3994.2,0.87626]
[1733543530442,0.0916084,3994.6,3994.3,0.87624]
[1733543530622,0.0916084,3994.6,3994.5,0.8762]
[1733543530935,0.798,3995.3,3994.7,0.87614]
[1733543531151,0.798,3995.3,3994.8,0.90115935]
[1733543531350,0.09270596,3995.2,3994.8,0.87613]
[1733543531653,0.798,3995.3,3994.8,0.0256]
[1733543532003,0.09270596,3995.2,3994.8,0.0256]
[1733543532538,0.798,3995.3,3994.8,0.0256]
[1733543532904,0.09270596,3995.2,3994.8,0.0256]
[1733543533239,0.798,3995.3,3994.8,0.0256]
[1733543533407,0.09263935,3995.1,3994.8,0.0256]
[1733543533614,0.798,3995.3,3994.8,0.0256]
[1733543533845,0.09257273,3995.0,3994.8,0.0256]
[1733543534131,0.8096,3994.9,3994.8,0.0256]
[1733543534350,1.065771,3994.9,3994.8,0.0256]
[1733543534500,0.90239758,3994.9,3994.8,0.0256]
[1733543538054,0.09279758,3994.9,3994.8,0.0256]
[1733543538218,0.8096,3995.3,3994.8,0.90173]
[1733543538549,0.09240718,3994.9,3994.8,1.67223]
[1733543538719,0.8096,3995.7,3994.8,1.67223]
[1733543539121,0.09287345,3995.6,3994.8,1.67223]
[1733543540331,0.09287345,3995.6,3994.8,0.7961]
[1733543541524,0.8096,3995.5,3994.8,0.0256]
[1733543541860,0.09274024,3995.4,3994.8,0.0256]
[1733543548907,0.09274024,3995.4,3994.8,0.90173]
[1733543550579,0.09274024,3995.4,3994.8,0.0256]
[1733543551111,0.09274024,3995.4,3994.8,0.90172]
[1733543552418,0.09274024,3995.4,3994.8,0.0256]
[1733543554582,0.09274024,3995.4,3994.8,0.90173]
[1733543559382,0.09274024,3995.4,3994.9,0.87611]
[1733543567124,0.09274024,3995.4,3994.8,0.0256]
[1733543573128,0.7779,3995.3,3994.8,0.0256]
[1733543573327,0.87055282,3995.3,3994.8,0.0256]
[1733543579925,0.09265282,3995.3,3994.9,1.08243359]
[1733543580130,0.7537,3995.9,3995.0,0.02502782]
[1733543580432,0.09162284,3995.2,3994.9,1.08243359]
[1733543580754,0.7537,3995.9,3995.1,0.87605]
[1733543581103,0.09202244,3995.8,3995.1,0.87605]
[1733543582228,0.09202244,3995.8,3995.2,0.87604]
[1733543582535,0.09202244,3995.8,3995.3,0.8313]
[1733543582920,0.09202244,3995.8,3995.3,0.8569]
[1733543590146,0.09202244,3995.8,3995.4,0.87599]
[1733543590334,0.7537,3996.2,3995.4,0.87599]
[1733543590534,0.09203918,3995.7,3995.4,0.87599]
[1733543590864,0.09284724,3995.6,3995.4,0.87599]
[1733543591046,0.7537,3996.2,3995.4,0.87599]
[1733543591246,0.09318018,3996.1,3995.4,0.87599]
[1733543593051,0.09318018,3996.1,3995.6,0.87596]
[1733543593561,0.09318018,3996.1,3995.6,0.90156]
[1733543595332,0.09318018,3996.1,3995.6,0.0256]
[1733543600611,0.09318018,3996.1,3995.6,0.90154]
[1733543600814,0.7537,3996.2,3995.6,0.90154]
[1733543601377,0.09385182,3996.1,3995.6,0.90154]
[1733543601882,0.7537,3996.2,3995.6,0.90154]
[1733543602279,0.09385182,3996.1,3995.6,0.90154]
[1733543603809,0.09385182,3996.1,3995.6,0.0256]
[1733543605092,0.7831,3996.0,3995.6,0.0256]
[1733543605285,0.87688524,3996.0,3995.6,0.0256]
[1733543614183,1.7518,3995.9,3995.6,0.0256]
[1733543614393,0.87688524,3996.0,3995.6,0.0256]
[1733543614394,0.7866,3995.7,3995.6,0.0256]
[1733543614631,2.80170252,3995.7,3995.6,0.0256]
[1733543614788,2.89520995,3995.7,3995.6,0.0256]
[1733543617326,0.88010743,3995.7,3995.6,0.0256]
[1733543617502,0.09350743,3995.7,3995.6,0.0256]
[1733543617892,0.7866,3996.0,3995.6,0.0256]
[1733543618091,0.09327626,3995.9,3995.6,0.0256]
[1733543621253,0.7866,3995.7,3995.6,0.0256]
[1733543621457,2.34604843,3995.7,3995.6,0.0256]
[1733543621666,4.19118602,3995.7,3995.6,0.0256]
[1733543621820,5.49121299,3995.7,3995.6,0.0256]
[1733543622256,4.19118602,3995.7,3995.6,0.0256]
[1733543624049,5.49119328,3995.7,3995.6,0.0256]
[1733543624950,5.4912038,3995.7,3995.6,0.0256]
[1733543625119,5.49119738,3995.7,3995.6,0.0256]
[1733543625465,6.53936726,3995.7,3995.6,0.0256]
[1733543626281,18.34936726,3995.7,3995.6,0.0256]
[1733543626441,19.23886859,3995.7,3995.6,0.0256]
[1733543626641,18.8734522,3995.7,3995.6,0.0256]
[1733543626939,19.26798068,3995.7,3995.6,0.0256]
[1733543627269,19.03417045,3995.7,3995.6,0.0256]
[1733543627771,19.26791569,3995.7,3995.6,0.0256]
[1733543628144,19.63333208,3995.7,3995.6,0.0256]
[1733543628340,0.7866,3994.8,3993.7,0.8109]
[1733543628549,3.62134359,3994.8,3993.7,0.8109]
[1733543628842,0.09218544,3994.7,3993.2,1.08243359]
[1733543629045,1.04773663,3995.3,3995.2,0.8109]
[1733543629238,1.04773663,3995.3,3995.2,2.44333359]
[1733543629440,0.07294488,3995.3,3995.2,3.72927813]
[1733543629849,6.63e-06,3996.2,3995.4,1.3609]
[1733543630027,6.63e-06,3996.2,3995.9,0.87589]
[1733543630230,0.06965358,3996.1,3995.9,0.87589]
[1733543630430,0.06965358,3996.1,3995.9,0.90098189]
[1733543631376,0.06965358,3996.1,3996.0,0.8109]
[1733543632028,0.7866,3997.2,3996.0,0.8109]
[1733543632465,0.7866,3997.2,3996.3,0.87579]
[1733543632466,0.06677895,3997.1,3996.3,0.87579]
[1733543632681,0.06677895,3997.1,3996.3,0.90088189]
[1733543633050,1.81805895,3997.1,3996.3,0.02509189]
[1733543633272,0.2604659,3997.0,3996.3,0.02509189]
[1733543633635,0.06745962,3996.9,3996.3,0.02509189]
[1733543635077,1.81881962,3996.9,3996.3,0.02509189]
[1733543635256,0.06745962,3996.9,3996.3,0.02509189]
[1733543638770,2.34240073,3997.1,3996.3,0.02509189]
[1733543638956,0.06719486,3996.8,3996.3,0.02509189]
[1733543639160,0.31290007,3997.0,3996.3,0.02509189]
[1733543639381,0.06723782,3996.7,3996.3,0.02509189]
[1733543639684,0.31290007,3997.0,3996.3,0.02509189]
[1733543639980,1.75136,3996.9,3996.3,0.02509189]
[1733543640153,0.20642601,3996.8,3996.3,0.02509189]
[1733543640343,0.7981,3996.7,3996.3,0.02509189]
[1733543640543,0.86544738,3996.7,3996.3,0.02509189]
[1733543644344,0.06734738,3996.7,3996.3,0.02509189]
[1733543644629,0.06734738,3996.7,3996.5,0.87576]
[1733543644886,0.7981,3997.5,3996.5,0.87576]
[1733543645237,0.06742205,3997.4,3996.5,0.87576]
[1733543646680,0.06742205,3997.4,3996.7,0.87571]
[1733543647044,0.7981,3997.7,3996.4,0.8214]
[1733543647278,0.06735551,3997.3,3996.5,0.87575]
[1733543647580,0.06728897,3997.2,3996.6,0.87573]
[1733543647943,0.7981,3997.7,3996.6,0.90082189]
[1733543648254,0.7981,3997.7,3996.7,0.87571]
[1733543648448,0.06755512,3997.6,3996.7,0.87571]
[1733543649554,0.06755512,3997.6,3996.8,0.8757]
[1733543650575,0.06755512,3997.6,3996.6,0.02509189]
[1733543650893,0.06755512,3997.6,3996.6,0.90082189]
[1733543651050,0.7981,3997.7,3997.0,0.87563]
[1733543651251,0.7981,3997.7,3996.6,0.90082189]
[1733543651252,0.7981,3997.7,3997.1,0.87563]
[1733543651491,0.06332628,3997.6,3997.1,0.87563]
[1733543651688,0.7981,3997.7,3997.1,0.87563]
[1733543651984,0.06332628,3997.6,3997.1,0.90072189]
[1733543653012,0.06332628,3997.6,3997.1,0.02509189]
[1733543653603,0.41142628,3997.7,3997.1,0.02509189]
[1733543653780,0.06022119,3997.5,3997.1,0.02509189]
[1733543653980,0.41142628,3997.7,3997.1,0.02509189]
[1733543653981,0.05991764,3997.6,3997.1,0.02509189]
[1733543654220,0.05978457,3997.4,3997.1,0.02509189]
[1733543654421,0.05985111,3997.5,3997.1,0.02509189]
[1733543654720,0.05978457,3997.4,3997.1,0.02509189]
[1733543655087,0.41142628,3997.7,3997.1,0.02509189]
[1733543655322,0.05991764,3997.6,3997.1,0.02509189]
[1733543663915,1.14048465,3997.6,3997.1,0.02509189]
[1733543664231,0.7856,3997.5,3997.1,0.02509189]
[1733543664427,1.75113,3997.4,3997.1,0.02509189]
[1733543664738,1.75118,3997.3,3997.1,0.02509189]
[1733543665139,0.06008954,3997.2,3997.1,0.02509189]
[1733543665346,2.07099649,3997.2,3997.1,0.02509189]
[1733543665517,2.01090695,3997.2,3997.1,0.02509189]
[1733543665712,2.07095999,3997.2,3997.1,0.02509189]
[1733543666450,2.85655999,3997.2,3997.1,0.02509189]
[1733543670561,3.40655999,3997.2,3997.1,0.02509189]
[1733543671541,12.21655999,3997.2,3997.1,0.02509189]
[1733543672889,11.51655999,3997.2,3997.1,0.02509189]
[1733543673855,12.38143634,3997.2,3997.1,0.02509189]
[1733543674181,7.12143634,3997.2,3997.1,0.02509189]
[1733543674393,8.76697345,3997.2,3997.1,0.02509189]
[1733543674681,19.3085287,3997.2,3997.1,0.02509189]
[1733543674927,20.58909571,3997.2,3997.1,1.89e-06]
[1733543675100,1.75172,3996.1,3995.6,0.7712]
[1733543675294,0.05846148,3996.0,3995.6,0.7712]
[1733543676026,0.05846148,3996.0,3995.0,1.08056701]
[1733543676027,0.05846148,3996.0,3995.1,0.7712]
[1733543676188,1.81021148,3996.0,3995.1,0.7712]
[1733543677093,0.05846148,3996.0,3995.1,0.7712]
[1733543677423,2.54608,3996.2,3995.1,0.7712]
[1733543677720,2.54608,3996.2,3995.1,0.7984]
[1733543677895,0.05789172,3996.1,3995.1,0.7984]
[1733543678425,1.80959172,3996.1,3995.1,0.7984]
[1733543682701,0.05789172,3996.1,3995.1,0.7984]
[1733543682901,1.75176,3996.0,3995.1,0.7984]
[1733543683637,0.05742455,3995.9,3995.1,0.7984]
[1733543684035,1.80923455,3995.9,3995.1,0.7984]
[1733543684625,1.75185,3995.8,3995.1,0.7984]
[1733543685017,0.05729137,3995.7,3995.1,0.7984]
[1733543688320,0.7944,3996.2,3995.1,0.7984]
[1733543688321,1.75177,3996.0,3995.1,0.7984]
[1733543688525,0.05742455,3995.9,3995.1,0.7984]
[1733543688731,1.80922455,3995.9,3995.1,0.7984]
[1733543689110,0.7944,3995.8,3995.1,0.7984]
[1733543689410,0.05729137,3995.7,3995.1,0.7984]
[1733543690409,0.05728222,3995.6,3995.1,0.7984]
[1733543690842,0.75169137,3995.8,3995.1,0.7984]
[1733543691047,0.05403276,3995.5,3995.1,0.7984]
[1733543691216,0.75169137,3995.8,3995.1,0.7984]
[1733543691415,0.05396616,3995.4,3995.1,0.7984]
[1733543691722,0.05389956,3995.3,3995.1,0.7984]
[1733543691922,0.75169137,3995.8,3995.1,0.7984]
[1733543692147,0.05416596,3995.7,3995.1,0.7984]
[1733543693849,0.05416596,3995.7,3995.1,0.0272]
[1733543694219,0.7687,3995.3,3995.1,0.0272]
[1733543694613,0.05362941,3995.2,3995.1,0.0272]
[1733543695447,1.7521,3995.2,3995.1,0.0272]
[1733543695650,1.80572941,3995.2,3995.1,0.0272]
[1733543698747,6.65499642,3995.2,3995.1,0.0272]
[1733543698940,7.32049606,3995.2,3995.1,0.0272]
[1733543699449,2.52123,3994.3,3993.6,0.7837]
[1733543699956,1.75259,3994.1,3993.6,0.7837]
[1733543700134,1.75259,3994.1,3993.0,0.7837]
[1733543700517,0.05229227,3994.0,3993.0,0.7837]
[1733543700749,1.75268,3993.9,3993.0,0.7837]
[1733543700935,0.05215896,3993.8,3993.6,0.02509189]
[1733543701361,0.7687,3994.7,3993.7,1.86426701]
[1733543701563,0.7687,3995.0,3993.8,0.7837]
[1733543701763,0.05188279,3994.6,3993.8,0.7837]
[1733543702070,0.7687,3995.0,3993.8,0.7837]
[1733543702275,0.05181616,3994.5,3993.8,0.80879189]
[1733543702568,0.05175997,3994.4,3993.8,0.80879189]
[1733543703166,0.05172466,3994.3,3993.8,0.80879189]
[1733543703654,1.75228,3994.8,3993.8,0.80879189]
[1733543703856,0.05165802,3994.2,3993.8,0.80879189]
[1733543704045,1.75228,3994.8,3993.8,0.80879189]
[1733543704236,0.05159137,3994.1,3993.8,0.80879189]
[1733543704436,1.75232,3994.7,3993.8,0.80879189]
[1733543704969,0.05192457,3994.6,3993.8,0.80879189]
[1733543705471,1.80429457,3994.6,3993.8,0.80879189]
[1733543706076,0.7687,3994.2,3993.8,0.02509189]
[1733543706573,1.80433848,3994.1,3993.8,0.02509189]
[1733543707161,0.05175848,3994.1,3993.8,0.02509189]
[1733543707347,1.75263,3994.0,3993.8,0.02509189]
[1733543707548,0.05162518,3993.9,3993.8,0.02509189]
[1733543707755,0.3089207,3993.9,3993.8,0.02509189]
[1733543707955,0.05162518,3993.9,3993.8,0.02509189]
[1733543708242,0.94912946,3994.6,3993.8,0.02509189]
[1733543708582,1.75245,3994.4,3993.8,0.02509189]
[1733543708950,0.05170899,3994.3,3993.8,0.02509189]
[1733543711047,0.94912946,3994.6,3993.8,0.02509189]
[1733543711269,0.05164235,3994.2,3993.8,0.02509189]
[1733543711445,1.75251,3994.3,3993.8,0.02509189]
[1733543711650,0.05157571,3994.1,3993.8,0.02509189]
[1733543711887,1.75251,3994.3,3993.8,0.02509189]
[1733543712170,3.39491295,3994.5,3993.8,0.02509189]
[1733543712171,1.75254,3994.2,3993.8,0.02509189]
[1733543712372,0.05157571,3994.1,3993.8,0.02509189]
[1733543714853,1.7525,3994.3,3993.8,0.02509189]
[1733543715086,0.05150906,3994.0,3993.8,0.02509189]
[1733543715286,1.7525,3994.3,3993.8,0.02509189]
[1733543715489,0.0514424,3993.9,3993.8,0.02509189]
[1733543715690,1.7525,3994.3,3993.8,0.02509189]
[1733543715890,0.0514424,3993.9,3993.8,0.02509189]
[1733543716120,0.5147413,3994.2,3993.8,0.02509189]
[1733543716255,0.0514424,3993.9,3993.8,0.02509189]
[1733543716972,0.5147413,3994.2,3993.8,0.02509189]
[1733543717166,0.05157571,3994.1,3993.8,0.02509189]
[1733543717700,1.7525,3994.3,3993.8,0.02509189]
[1733543717858,0.05150906,3994.0,3993.8,0.02509189]
[1733543718060,0.39491295,3994.5,3993.8,0.79879189]
[1733543718760,0.05177563,3994.4,3993.8,0.79879189]
[1733543719101,1.80423563,3994.4,3993.8,0.79879189]
[1733543719601,0.05177563,3994.4,3993.8,0.79879189]
[1733543719846,1.75227,3994.8,3993.8,0.79879189]
[1733543720599,0.05252375,3994.7,3993.8,0.79879189]
[1733543721107,1.80485375,3994.7,3993.8,0.79879189]
[1733543722675,1.75242,3994.5,3993.8,0.79879189]
[1733543722992,0.05232386,3994.4,3993.8,0.79879189]
[1733543723614,1.75232,3994.7,3993.8,0.79879189]
[1733543723813,0.05225722,3994.3,3993.8,0.79879189]
[1733543724014,1.75232,3994.7,3993.8,0.79879189]
[1733543724319,0.05219057,3994.2,3993.8,0.79879189]
[1733543724514,1.75232,3994.7,3993.8,0.79879189]
[1733543724683,0.05212393,3994.1,3993.8,0.79879189]
[1733543725080,1.75229,3994.8,3993.8,0.79879189]
[1733543725281,2.008849,3994.8,3993.8,0.79879189]
[1733543725617,0.05252375,3994.7,3993.8,0.79879189]
[1733543726224,0.8133,3995.0,3993.8,0.79879189]
[1733543726378,1.75263,3994.0,3993.8,0.79879189]
[1733543726583,0.05199063,3993.9,3993.8,0.02509189]
[1733543726782,1.98512369,3993.9,3993.8,0.02509189]
[1733543729920,0.23245369,3993.9,3993.8,0.02509189]
[1733543730095,0.05199063,3993.9,3993.8,0.02509189]
[1733543730422,1.75258,3994.1,3993.8,0.02509189]
[1733543731204,0.05201558,3994.0,3993.8,0.02509189]
[1733543731592,1.75263,3994.0,3993.8,0.02509189]
[1733543732119,0.05194893,3993.9,3993.8,0.02509189]
[1733543733520,1.80461893,3993.9,3993.8,0.02509189]
[1733543733845,1.98508082,3993.9,3993.8,0.02509189]
[1733543734939,0.23241082,3993.9,3993.8,0.02509189]
[1733543735111,0.05194893,3993.9,3993.8,0.02509189]
[1733543735303,1.75262,3994.1,3993.8,0.02509189]
[1733543735503,0.05186539,3993.9,3993.8,0.02509189]
[1733543735803,1.75262,3994.1,3993.8,0.02509189]
[1733543736305,0.05183804,3994.0,3993.8,0.02509189]
[1733543738234,1.80446804,3994.0,3993.8,0.02509189]
[1733543738399,1.98491484,3994.0,3993.8,0.02509189]
[1733543738737,1.75267,3993.9,3993.8,0.02509189]
[1733543739104,1.80444661,3993.9,3993.8,0.02509189]
[1733543741826,2.88696648,3993.9,3993.8,0.02509189]
[1733543742149,3.70856648,3993.9,3993.8,0.02509189]
[1733543742450,4.1339727,3993.9,3993.8,0.02509189]
[1733543743308,7.49902165,3993.9,3993.8,0.02509189]
[1733543743644,10.21695621,3993.9,3993.8,0.02509189]
[1733543743842,11.26162412,3993.9,3993.8,1.89e-06]
[1733543744318,10.21695621,3993.9,3993.8,1.89e-06]
[1733543744513,11.2655353,3993.9,3993.8,1.89e-06]
[1733543744934,10.21695621,3993.9,3993.8,1.89e-06]
[1733543745444,11.26530812,3993.9,3993.8,1.89e-06]
[1733543745740,10.90025917,3993.9,3993.8,1.89e-06]
[1733543746307,8.73232461,3993.9,3993.8,1.89e-06]
[1733543746504,9.85108377,3993.9,3993.8,1.89e-06]
[1733543747142,10.89943568,3993.9,3993.8,1.89e-06]
[1733543747521,9.26645672,3993.9,3993.8,1.89e-06]
[1733543747717,9.85062468,3993.9,3993.8,1.89e-06]
[1733543748041,10.89897659,3993.9,3993.8,1.89e-06]
[1733543748220,9.85062468,3993.9,3993.8,1.89e-06]
[1733543748424,10.89840593,3993.9,3993.8,1.89e-06]
[1733543749143,9.85062468,3993.9,3993.8,1.89e-06]
[1733543749546,10.21567363,3993.9,3993.8,1.89e-06]
[1733543750344,11.78718885,3993.9,3993.8,1.89e-06]
[1733543751405,9.85062468,3993.9,3993.8,1.89e-06]
[1733543751863,10.89788954,3993.9,3993.8,1.89e-06]
[1733543752504,9.85062468,3993.9,3993.8,1.89e-06]
[1733543752708,18.66062468,3993.9,3993.8,1.89e-06]
[1733543752909,19.70788954,3993.9,3993.8,1.89e-06]
[1733543753130,18.66062468,3993.9,3993.8,1.89e-06]
[1733543754467,17.36063349,3993.9,3993.8,1.89e-06]
[1733543754763,18.65917113,3993.9,3993.8,1.89e-06]
[1733543755956,17.24251034,3993.9,3993.8,1.89e-06]
[1733543756158,15.9439727,3993.9,3993.8,1.89e-06]
[1733543761262,15.1223727,3993.9,3993.8,1.89e-06]
[1733543761478,10.61444661,3993.9,3993.8,0.82230189]
[1733543761945,0.05177661,3993.9,3993.8,0.82230189]
[1733543762149,8.81,3994.3,3993.8,0.82230189]
[1733543762337,0.05103506,3993.9,3993.8,0.82230189]
[1733543762540,8.81,3994.3,3993.8,0.82230189]
[1733543763379,8.81,3994.7,3993.8,0.82230189]
[1733543763870,8.81,3994.9,3993.8,0.82230189]
[1733543764034,8.81,3994.9,3993.9,0.8223]
[1733543765261,0.0518907,3994.8,3993.9,0.8223]
[1733543767887,8.8618907,3994.8,3993.9,0.8223]
[1733543768803,1.75237,3994.6,3993.9,0.8223]
[1733543769173,0.0518907,3994.8,3993.9,0.8223]
[1733543769368,1.8041907,3994.8,3993.9,0.8223]
[1733543769568,0.0518907,3994.8,3994.0,0.8223]
[1733543769792,8.81,3994.9,3994.0,0.8223]
[1733543770006,0.05193374,3994.7,3994.0,0.8223]
[1733543770310,0.05186711,3994.6,3994.0,0.8223]
[1733543770510,10.56223,3994.9,3994.0,0.8223]
[1733543770805,0.05200036,3994.8,3994.0,0.8223]
[1733543773367,0.05200036,3994.8,3994.2,0.82]
[1733543773571,11.81,3995.4,3994.2,0.82]
[1733543773773,0.05122864,3994.7,3994.2,0.82]
[1733543773973,11.81,3995.4,3994.2,0.82]
[1733543774171,0.05116201,3994.6,3994.2,0.82]
[1733543774473,1.75206,3995.3,3994.2,0.82]
[1733543774674,0.05156173,3995.2,3994.2,0.82]
[1733543775415,0.05156173,3995.2,3994.2,0.87626]
[1733543775586,0.05156173,3995.2,3994.3,0.789]
[1733543777180,1.75216,3995.1,3994.3,0.789]
[1733543777681,0.05210217,3995.0,3994.3,0.789]
[1733543777882,10.56209,3995.3,3994.3,0.789]
[1733543778081,0.0522354,3995.2,3994.3,0.789]
[1733543778313,1.75214,3995.1,3994.3,0.789]
[1733543778513,0.05210217,3995.0,3994.3,0.789]
[1733543783757,1.75223,3994.9,3994.3,0.789]
[1733543784028,0.05196893,3994.8,3994.3,0.789]
[1733543784395,1.75251,3994.3,3993.9,0.789]
[1733543784996,9.58,3994.7,3993.9,0.789]
[1733543785628,1.75258,3994.1,3993.9,0.789]
[1733543786632,1.75255,3994.2,3993.9,0.789]
[1733543787529,0.05197257,3994.1,3993.9,0.789]
[1733543788518,0.05177536,3994.0,3993.9,0.789]
[1733543788719,1.75245,3994.4,3993.9,0.789]
[1733543789029,0.05177536,3994.0,3993.9,0.789]
[1733543789232,1.75245,3994.4,3993.9,0.789]
[1733543789435,0.05177536,3994.0,3993.9,0.789]
[1733543789598,1.75245,3994.4,3993.9,0.789]
[1733543789799,0.05177536,3994.0,3993.9,0.789]
[1733543790038,1.7525,3994.3,3993.9,0.789]
[1733543790337,2.80879,3994.2,3993.9,0.789]
[1733543790632,1.75262,3994.0,3993.9,0.789]
[1733543790840,1.75262,3994.0,3993.8,1.89e-06]
[1733543791000,1.80439014,3994.0,3993.8,1.89e-06]
[1733543793223,1.75267,3993.9,3993.8,1.89e-06]
[1733543793426,2.223991,3993.9,3993.8,1.89e-06]
[1733543793736,0.52293571,3993.9,3993.8,1.89e-06]
[1733543794094,0.05161471,3993.9,3993.8,1.89e-06]
[1733543794295,1.75258,3994.1,3993.8,1.89e-06]
[1733543794510,0.05127007,3993.9,3993.8,1.89e-06]
[1733543794712,2.80879,3994.2,3993.8,1.89e-06]
[1733543794920,0.05127007,3993.9,3993.8,1.89e-06]
[1733543795134,9.86625,3994.2,3993.8,1.89e-06]
[1733543795297,0.05120218,3993.9,3993.8,1.89e-06]
[1733543795636,1.75263,3994.0,3993.8,1.89e-06]
[1733543795844,0.05120218,3993.9,3993.8,1.89e-06]
[1733543798325,9.796625,3994.1,3993.8,1.89e-06]
[1733543798526,0.05120218,3993.9,3993.8,1.89e-06]
[1733543798748,9.796625,3994.1,3993.8,1.89e-06]
[1733543799039,0.05120218,3993.9,3993.8,1.89e-06]
[1733543799211,1.1549165,3994.0,3993.8,1.89e-06]
[1733543799417,0.05120218,3993.9,3993.8,1.89e-06]
[1733543802541,8.81,3994.1,3993.8,0.81560189]
[1733543802743,0.05113951,3993.9,3993.8,0.81560189]
[1733543803045,8.81,3994.1,3993.8,0.81560189]
[1733543803240,0.05113429,3993.9,3993.8,0.81560189]
[1733543803403,8.81,3994.1,3993.8,0.81560189]
[1733543803605,0.05113429,3993.9,3993.8,0.81560189]
[1733543803913,8.81,3994.8,3993.8,0.81560189]
[1733543806147,0.05176663,3994.7,3993.8,0.81560189]
[1733543806348,1.21780925,3994.7,3993.8,0.81560189]
[1733543806859,10.02780925,3994.7,3993.8,0.81560189]
[1733543808333,11.78012925,3994.7,3993.8,0.81560189]
[1733543809985,8.81,3994.6,3993.8,0.81560189]
[1733543813046,10.02780925,3994.7,3993.8,0.81560189]
[1733543813247,0.0517796,3994.5,3993.8,0.81560189]
[1733543813424,8.81,3994.7,3993.8,0.81560189]
[1733543813425,0.05184624,3994.6,3993.8,0.81560189]
[1733543813631,0.05171297,3994.4,3993.8,0.81560189]
[1733543813939,0.05164633,3994.3,3993.8,0.81560189]
[1733543814263,8.81,3994.7,3993.8,0.81560189]
[1733543814470,0.05157969,3994.2,3993.8,0.81560189]
[1733543814631,8.81,3994.7,3993.8,0.81560189]
[1733543815166,0.05184624,3994.6,3993.8,0.81560189]
[1733543815837,8.86184624,3994.6,3993.8,0.81560189]
[1733543817962,1.75241,3994.5,3993.8,0.81560189]
[1733543818165,1.24594761,3994.4,3993.8,0.81560189]
[1733543818472,1.29762402,3994.4,3993.8,0.81560189]
[1733543823169,0.05167641,3994.4,3993.8,0.81560189]
[1733543823365,8.81,3994.6,3993.8,0.81560189]
[1733543823570,0.05173511,3994.3,3993.8,0.81560189]
[1733543823775,10.56236,3994.6,3993.8,0.81560189]
[1733543824094,0.05166846,3994.2,3993.8,0.81560189]
[1733543824296,1.75243,3994.5,3993.8,0.81560189]
[1733543824458,0.05160182,3994.1,3993.8,0.81560189]
[1733543824659,2.808666,3994.5,3993.8,0.81560189]
[1733543824858,0.05152995,3994.0,3993.8,0.81560189]